bitfinex-derivatives/quotes_BTCF0:USTF0_20230701
["timestamp","ask_amount","ask_price","bid_price","bid_amount"]
[1688193456237,0.39377345,30428.0,30427.0,1.07745276]
[1688193456735,0.39377345,30428.0,30427.0,1.09568245]
[1688193457154,0.39377345,30428.0,30427.0,1.07745276]
[1688193458735,0.39377345,30428.0,30427.0,0.71665276]
[1688193458937,0.39377345,30428.0,30427.0,1.07745276]
[1688193459142,0.39377345,30428.0,30427.0,1.09568245]
[1688193460347,0.39377345,30428.0,30427.0,1.07745276]
[1688193460544,0.39377345,30428.0,30427.0,1.09568245]
[1688193461950,0.37404945,30428.0,30427.0,1.07745276]
[1688193462151,0.37404945,30428.0,30427.0,1.09568245]
[1688193462346,0.39377045,30428.0,30427.0,1.09568245]
[1688193462646,0.39377145,30428.0,30427.0,1.09568245]
[1688193464044,0.39377145,30428.0,30427.0,1.07745276]
[1688193464250,0.39377145,30428.0,30427.0,1.09568245]
[1688193464745,0.39377145,30428.0,30427.0,1.07745276]
[1688193465043,0.39377145,30428.0,30427.0,1.07755276]
[1688193465449,0.374922,30428.0,30427.0,1.16150039]
[1688193465749,0.374922,30428.0,30427.0,1.17984475]
[1688193467142,0.374922,30428.0,30427.0,1.16150039]
[1688193467752,0.374922,30428.0,30427.0,1.1432707]
[1688193468152,0.39377145,30428.0,30427.0,1.1432707]
[1688193469752,0.374922,30428.0,30427.0,1.1432707]
[1688193470052,0.374922,30428.0,30427.0,1.16150039]
[1688193470244,0.374922,30428.0,30427.0,1.17984475]
[1688193470751,0.374922,30428.0,30427.0,1.16161506]
[1688193470952,0.374922,30428.0,30427.0,1.1432707]
[1688193472356,0.374922,30428.0,30427.0,1.16150039]
[1688193473957,0.3552,30428.0,30427.0,1.16150039]
[1688193474947,0.3552,30428.0,30427.0,0.80630039]
[1688193475765,0.374923,30428.0,30427.0,0.80630039]
[1688193476055,0.39377245,30428.0,30427.0,0.80630039]
[1688193476356,0.39377245,30428.0,30427.0,0.7880707]
[1688193476657,0.39377245,30428.0,30427.0,0.80630039]
[1688193478358,0.39377245,30428.0,30427.0,0.7880707]
[1688193478859,0.39377245,30428.0,30427.0,0.80630039]
[1688193480357,0.39377245,30428.0,30427.0,0.72235276]
[1688193480957,0.39377245,30428.0,30427.0,0.74058245]
[1688193482158,0.39377245,30428.0,30427.0,0.72235276]
[1688193484861,0.39377245,30428.0,30427.0,0.74058245]
[1688193487763,0.39377245,30428.0,30427.0,0.7880707]
[1688193487963,0.39377245,30428.0,30427.0,0.80249174]
[1688193488667,0.39377245,30428.0,30427.0,0.78426205]
[1688193489666,0.39377245,30428.0,30427.0,0.80249174]
[1688193493875,0.39377245,30428.0,30427.0,0.44169174]
[1688193494055,0.39377245,30428.0,30427.0,0.78426205]
[1688193494955,0.39377245,30428.0,30427.0,0.44169174]
[1688193495160,0.39377245,30428.0,30427.0,0.80249174]
[1688193497054,0.39377245,30428.0,30427.0,0.78426205]
[1688193498771,0.39377245,30428.0,30427.0,0.80249174]
[1688193499274,0.39377245,30428.0,30427.0,0.78426205]
[1688193500974,0.39377245,30428.0,30427.0,0.71854411]
[1688193505268,0.39377245,30428.0,30427.0,0.7367738]
[1688193505471,0.39377245,30428.0,30427.0,0.71854411]
[1688193505867,0.39377245,30428.0,30427.0,0.7367738]
[1688193506264,0.39377245,30428.0,30427.0,0.71854411]
[1688193508369,0.39377245,30428.0,30427.0,0.35774411]
[1688193508571,0.39377245,30428.0,30427.0,0.71854411]
[1688193509678,0.41971482,30428.0,30427.0,0.71854411]
[1688193509864,0.41971482,30428.0,30427.0,0.35774411]
[1688193510065,0.41971482,30428.0,30427.0,0.71854411]
[1688193510472,0.41971482,30428.0,30427.0,0.78426205]
[1688193511576,0.41971482,30428.0,30427.0,0.80249174]
[1688193511775,0.41971482,30428.0,30427.0,0.78426205]
[1688193512575,0.41971482,30428.0,30427.0,0.42346205]
[1688193512880,0.41971482,30428.0,30427.0,0.78426205]
[1688193514271,0.39377245,30428.0,30427.0,0.78426205]
[1688193515977,0.39377245,30428.0,30427.0,0.80249174]
[1688193517179,0.39377245,30428.0,30427.0,0.78426205]
[1688193517381,0.39377245,30428.0,30427.0,0.80249174]
[1688193517974,0.39377245,30428.0,30427.0,0.7367738]
[1688193519084,0.39377245,30428.0,30427.0,0.80249174]
[1688193519783,0.39377245,30428.0,30427.0,0.7367738]
[1688193519972,0.39377245,30428.0,30427.0,0.80249174]
[1688193520367,0.39377245,30428.0,30427.0,0.7367738]
[1688193520781,0.39377245,30428.0,30427.0,0.3759738]
[1688193520983,0.39377245,30428.0,30427.0,0.7367738]
[1688193521282,0.39377245,30428.0,30427.0,0.80249174]
[1688193523889,0.39377245,30428.0,30427.0,0.78426205]
[1688193524288,0.39377245,30428.0,30427.0,0.80249174]
[1688193526178,0.39377245,30428.0,30427.0,0.78426205]
[1688193526379,0.39377245,30428.0,30427.0,0.80249174]
[1688193527690,0.39377245,30428.0,30427.0,0.78426205]
[1688193528190,0.39377245,30428.0,30427.0,0.08936874]
[1688193528392,0.39377245,30428.0,30427.0,0.00542111]
[1688193528691,0.39377245,30428.0,30427.0,0.02514611]
[1688193529082,0.39377245,30428.0,30427.0,0.00542111]
[1688193529283,0.39377245,30428.0,30427.0,0.02514611]
[1688193532996,0.39377245,30428.0,30427.0,0.00542111]
[1688193543198,0.374923,30428.0,30427.0,0.02514511]
[1688193544195,0.39377245,30428.0,30427.0,0.02514511]
[1688193547099,0.39377245,30428.0,30427.0,0.38594511]
[1688193547298,0.374923,30428.0,30427.0,0.4041748]
[1688193547897,0.374923,30428.0,30427.0,0.38594511]
[1688193548290,0.39377245,30428.0,30427.0,0.4041748]
[1688193550618,0.374923,30428.0,30427.0,0.4041748]
[1688193551308,0.374923,30428.0,30427.0,0.42251916]
[1688193552616,0.3552,30429.0,30427.0,0.8499371]
[1688193552820,0.00049294,30433.0,30428.0,0.45499199]
[1688193553007,0.02021094,30433.0,30432.0,0.716]
[1688193553216,0.53967809,30433.0,30432.0,0.77229305]
[1688193553709,0.53967809,30433.0,30432.0,1.10079305]
[1688193554920,0.18447809,30433.0,30432.0,1.10079305]
[1688193555115,0.18730906,30433.0,30432.0,1.10079305]
[1688193556016,0.18730906,30433.0,30432.0,0.73999305]
[1688193556216,0.18730906,30433.0,30432.0,1.10079305]
[1688193556614,0.02304191,30433.0,30432.0,1.10079305]
[1688193557714,0.18730906,30433.0,30432.0,1.10079305]
[1688193558313,0.02304191,30433.0,30432.0,1.10079305]
[1688193560220,0.02304191,30433.0,30432.0,1.1268498]
[1688193564728,0.02304191,30433.0,30432.0,0.7660498]
[1688193564924,0.37824191,30433.0,30432.0,0.7716498]
[1688193565126,0.37824191,30433.0,30432.0,0.4108498]
[1688193565424,0.37824191,30433.0,30432.0,0.7716498]
[1688193566925,0.059155,30436.0,30432.0,1.19916437]
[1688193567126,0.059155,30436.0,30435.0,0.732916]
[1688193567513,0.059155,30436.0,30435.0,0.75114569]
[1688193567728,0.059155,30436.0,30435.0,0.76949005]
[1688193574537,0.07287368,30436.0,30435.0,0.76949005]
[1688193575436,0.01371868,30436.0,30435.0,0.76949005]
[1688193575928,0.03343668,30436.0,30435.0,0.76949005]
[1688193576529,0.01371868,30436.0,30435.0,0.76949005]
[1688193576840,0.019717,30437.0,30435.0,0.76949005]
[1688193577036,0.019717,30437.0,30436.0,0.38927405]
[1688193577235,0.019717,30437.0,30436.0,0.76979205]
[1688193577730,0.019717,30437.0,30436.0,1.08699205]
[1688193585035,0.03346259,30437.0,30436.0,1.08699205]
[1688193587037,0.03346259,30437.0,30436.0,1.06876236]
[1688193587243,0.03346259,30437.0,30436.0,1.050418]
[1688193587634,0.03346259,30437.0,30436.0,1.07677824]
[1688193588544,0.03346259,30437.0,30436.0,1.11335229]
[1688193588749,0.03346259,30437.0,30436.0,0.75255229]
[1688193588936,0.03346259,30437.0,30436.0,1.11335229]
[1688193591636,0.03346259,30437.0,30436.0,1.0951226]
[1688193592049,0.03346259,30437.0,30436.0,1.11335229]
[1688193592241,0.03346259,30437.0,30436.0,1.0951226]
[1688193592749,0.03346259,30437.0,30436.0,1.11335229]
[1688193594443,0.03346259,30437.0,30436.0,1.07677824]
[1688193596252,0.03346259,30437.0,30436.0,1.11335229]
[1688193597153,0.02797081,30437.0,30436.0,1.11335229]
[1688193598241,0.19223796,30437.0,30436.0,1.11335229]
[1688193598749,0.19223796,30437.0,30436.0,1.0951226]
[1688193598948,0.19223796,30437.0,30436.0,1.11335229]
[1688193599147,0.19223796,30437.0,30436.0,0.75255229]
[1688193600256,0.19223796,30437.0,30436.0,0.7343226]
[1688193600553,0.02797081,30437.0,30436.0,0.7343226]
[1688193601145,0.02797081,30437.0,30436.0,0.75255229]
[1688193602257,0.02797081,30437.0,30436.0,0.7343226]
[1688193603960,0.02797081,30437.0,30436.0,0.75255229]
[1688193604360,0.02797081,30437.0,30436.0,0.7343226]
[1688193604653,0.02797081,30437.0,30436.0,0.75255229]
[1688193605153,0.02797081,30437.0,30436.0,0.7343226]
[1688193605455,0.02797081,30437.0,30436.0,0.75255229]
[1688193605760,0.02797081,30437.0,30436.0,0.7343226]
[1688193605943,0.0249557,30437.0,30436.0,0.7343226]
[1688193606148,0.0249557,30437.0,30436.0,0.75255229]
[1688193606760,0.0249557,30437.0,30436.0,0.7343226]
[1688193607159,0.0249557,30437.0,30436.0,1.0951226]
[1688193607359,0.019717,30437.0,30436.0,1.0951226]
[1688193607962,0.18398415,30437.0,30436.0,1.0951226]
[1688193608151,0.18922819,30437.0,30436.0,1.0951226]
[1688193608351,0.18922819,30437.0,30436.0,1.07677824]
[1688193609259,0.18922819,30437.0,30436.0,1.09500793]
[1688193609658,0.18922819,30437.0,30436.0,1.07677824]
[1688193610462,0.02496104,30437.0,30436.0,1.07677824]
[1688193610761,0.18918002,30437.0,30436.0,1.11335229]
[1688193611264,0.18918002,30437.0,30436.0,1.0951226]
[1688193611759,0.02496104,30437.0,30436.0,1.0951226]
[1688193612865,0.02496104,30437.0,30436.0,1.11335229]
[1688193617580,0.02496104,30437.0,30436.0,1.0951226]
[1688193617980,0.02496104,30437.0,30436.0,1.11335229]
[1688193619969,0.02496104,30437.0,30436.0,1.0951226]
[1688193621282,0.02496104,30437.0,30436.0,1.11335229]
[1688193621878,0.02496104,30437.0,30436.0,0.75255229]
[1688193622079,0.02496104,30437.0,30436.0,1.11335229]
[1688193625280,0.02496104,30437.0,30436.0,1.0951226]
[1688193625685,0.02496104,30437.0,30436.0,1.11335229]
[1688193629389,0.04381049,30437.0,30436.0,1.07677824]
[1688193630176,0.02496104,30437.0,30436.0,1.09500793]
[1688193630686,0.02496104,30437.0,30436.0,1.11335229]
[1688193636979,0.04381049,30437.0,30436.0,1.07677824]
[1688193638876,0.02496104,30437.0,30436.0,1.07677824]
[1688193639886,0.02496104,30437.0,30436.0,1.09500793]
[1688193640188,0.02496104,30437.0,30436.0,1.07677824]
[1688193640582,0.02496104,30437.0,30436.0,1.09500793]
[1688193640889,0.02773563,30437.0,30436.0,1.09500793]
[1688193641088,0.02773563,30437.0,30436.0,1.07677824]
[1688193641585,0.04658508,30437.0,30436.0,1.07677824]
[1688193643793,0.04658508,30437.0,30436.0,1.09500793]
[1688193644092,0.04658508,30437.0,30436.0,1.07677824]
[1688193644392,0.04658508,30437.0,30436.0,1.09500793]
[1688193645189,0.02773563,30437.0,30436.0,1.09500793]
[1688193645884,0.04658508,30437.0,30436.0,1.09500793]
[1688193646386,0.04658508,30437.0,30436.0,1.07677824]
[1688193651495,0.04658508,30437.0,30436.0,0.71597824]
[1688193651689,0.04658508,30437.0,30436.0,1.07677824]
[1688193658997,0.04658508,30437.0,30436.0,0.71597824]
[1688193659198,0.04658508,30437.0,30436.0,1.07677824]
[1688193664702,0.04658508,30437.0,30436.0,1.09500793]
[1688193664911,0.04658508,30437.0,30436.0,1.07677824]
[1688193665201,0.04658508,30437.0,30436.0,1.09500793]
[1688193665707,0.04658508,30437.0,30436.0,1.07677824]
[1688193667700,0.04658508,30437.0,30436.0,1.09500793]
[1688193669107,0.02686808,30437.0,30436.0,1.09500793]
[1688193669712,0.00801863,30437.0,30436.0,1.09500793]
[1688193670011,0.02773663,30437.0,30436.0,1.09500793]
[1688193670595,0.02773663,30437.0,30436.0,1.07677824]
[1688193670802,0.02773663,30437.0,30436.0,1.09500793]
[1688193670999,0.02773663,30437.0,30436.0,1.07677824]
[1688193671401,0.02773663,30437.0,30436.0,1.09500793]
[1688193671904,0.02773663,30437.0,30436.0,1.07677824]
[1688193672505,0.04658608,30437.0,30436.0,1.07677824]
[1688193675307,0.04658608,30437.0,30436.0,0.75957824]
[1688193675504,0.40178608,30437.0,30436.0,0.40687824]
[1688193677212,0.40178608,30437.0,30436.0,0.04607824]
[1688193680919,0.40178608,30437.0,30436.0,0.40127824]
[1688193680920,0.04658608,30437.0,30436.0,0.40127824]
[1688193683112,0.04658608,30437.0,30436.0,0.38156024]
[1688193683313,0.04658608,30437.0,30436.0,0.40127624]
[1688193684818,0.39858608,30437.0,30436.0,0.40127624]
[1688193694927,0.40178608,30437.0,30436.0,0.40127624]
[1688193696734,0.40178608,30437.0,30436.0,0.72357624]
[1688193701440,0.40178608,30437.0,30436.0,0.36837624]
[1688193704834,0.40178608,30437.0,30436.0,0.72357624]
[1688193714941,0.39858608,30437.0,30436.0,0.72357624]
[1688193724844,0.40178608,30437.0,30436.0,0.72357624]
[1688193731362,0.40178608,30437.0,30436.0,0.36837624]
[1688193735062,0.42791115,30437.0,30436.0,0.36837624]
[1688193741075,0.42791115,30437.0,30436.0,0.36837924]
[1688193741672,0.42791115,30437.0,30436.0,0.34866024]
[1688193741863,0.42791115,30437.0,30436.0,0.36837824]
[1688193750966,0.62515828,30437.0,30436.0,0.36837824]
[1688193758176,0.42791115,30437.0,30436.0,0.36837824]
[1688193758363,0.42791115,30437.0,30436.0,0.36838124]
[1688193759374,0.42791115,30437.0,30433.0,0.19196865]
[1688193759375,0.78871115,30437.0,30433.0,0.19196865]
[1688193759681,0.734322,30434.0,30433.0,0.12625408]
[1688193759869,0.74260537,30434.0,30433.0,0.12625408]
[1688193760270,0.76145482,30434.0,30433.0,0.12625408]
[1688193761579,0.76145482,30434.0,30433.0,0.15281078]
[1688193766184,0.76145482,30434.0,30433.0,0.09364678]
[1688193766478,0.76145482,30434.0,30432.0,0.00049284]
[1688193766680,0.37084945,30433.0,30432.0,0.02722053]
[1688193766874,0.39057145,30433.0,30432.0,0.00049284]
[1688193767179,0.39057145,30433.0,30432.0,0.0058275]
[1688193767382,0.39057145,30433.0,30432.0,0.00049284]
[1688193767978,0.39057145,30433.0,30432.0,0.00582579]
[1688193770475,0.75137145,30433.0,30432.0,0.00582579]
[1688193780197,0.77037145,30433.0,30432.0,0.00582579]
[1688193780496,0.79037145,30433.0,30432.0,0.00582579]
[1688193780697,0.97991277,30433.0,30432.0,0.00582579]
[1688193788193,0.81604922,30433.0,30432.0,0.00582579]
[1688193795803,0.81604922,30433.0,30432.0,0.33732579]
[1688193795991,0.45524922,30433.0,30432.0,0.33732579]
[1688193796197,0.81604922,30433.0,30432.0,0.33732579]
[1688193796404,0.77704922,30433.0,30432.0,0.33732579]
[1688193803306,0.97429635,30433.0,30432.0,0.33732579]
[1688193805107,0.9554469,30433.0,30421.0,0.16429038]
[1688193805306,0.3608,30425.0,30423.0,0.019725]
[1688193805498,0.3608,30425.0,30424.0,0.414377]
[1688193806890,0.3608,30425.0,30424.0,0.43272136]
[1688193807495,0.3608,30425.0,30424.0,0.43679061]
[1688193807907,0.37964945,30425.0,30424.0,0.41844625]
[1688193808900,0.39937545,30425.0,30424.0,0.41844625]
[1688193809104,0.37964945,30425.0,30424.0,0.41844625]
[1688193810306,0.43404496,30425.0,30424.0,0.41844625]
[1688193810507,0.73134945,30425.0,30424.0,0.41844625]
[1688193810711,0.73134945,30425.0,30424.0,0.63599418]
[1688193812105,0.75107545,30425.0,30424.0,0.63599418]
[1688193812403,0.75107545,30425.0,30424.0,0.70108876]
[1688193814709,0.39027545,30425.0,30424.0,0.70108876]
[1688193814900,0.39937545,30425.0,30424.0,0.70108876]
[1688193816206,0.39937545,30425.0,30424.0,0.48354083]
[1688193816414,0.39937545,30425.0,30424.0,0.70109672]
[1688193816605,0.39937545,30425.0,30424.0,0.70109674]
[1688193817809,0.37964945,30425.0,30424.0,0.48354083]
[1688193819502,0.01884945,30425.0,30424.0,0.48354083]
[1688193819699,0.37964945,30425.0,30424.0,0.48354083]
[1688193821299,0.39937545,30425.0,30424.0,0.48354083]
[1688193823213,0.03857545,30425.0,30424.0,0.48354083]
[1688193823611,0.39937545,30425.0,30424.0,0.48354083]
[1688193826916,0.03857545,30425.0,30424.0,0.48354083]
[1688193827215,0.39937545,30425.0,30424.0,0.48354083]
[1688193827421,0.03857545,30425.0,30424.0,0.48354083]
[1688193827609,0.39937545,30425.0,30424.0,0.48354083]
[1688193831321,0.380526,30425.0,30424.0,0.48354083]
[1688193831919,0.019726,30425.0,30424.0,0.48354083]
[1688193832123,0.3608,30431.0,30425.0,0.01822969]
[1688193832314,0.059175,30427.0,30426.0,0.716]
[1688193832520,0.412475,30427.0,30426.0,0.73973876]
[1688193832721,0.412475,30427.0,30426.0,0.75796845]
[1688193833018,0.412475,30427.0,30426.0,0.77631281]
[1688193833219,0.412475,30427.0,30426.0,1.10661281]
[1688193834624,0.412475,30427.0,30426.0,0.74581281]
[1688193834928,0.059175,30427.0,30426.0,1.10661281]
[1688193840115,0.059175,30427.0,30426.0,1.13229467]
[1688193841323,0.3165,30429.0,30426.0,1.13229467]
[1688193841517,0.04980099,30430.0,30428.0,0.3549]
[1688193841718,0.04980099,30430.0,30429.0,0.374923]
[1688193841915,0.04980099,30430.0,30429.0,0.3789155]
[1688193842116,0.04980099,30430.0,30429.0,0.41548955]
[1688193842319,0.04980099,30430.0,30429.0,0.72148955]
[1688193847024,0.00049299,30430.0,30429.0,0.72148955]
[1688193847229,0.02021599,30430.0,30429.0,0.72148955]
[1688193852330,0.00049299,30430.0,30429.0,0.72148955]
[1688193853023,0.16469292,30430.0,30429.0,0.72148955]
[1688193854533,0.16469292,30430.0,30429.0,1.08228955]
[1688193856037,0.16469292,30430.0,30429.0,0.72148955]
[1688193856223,0.16469292,30430.0,30429.0,1.08228955]
[1688193861137,0.16469292,30430.0,30429.0,0.72148955]
[1688193861430,0.16469292,30430.0,30429.0,1.08228955]
[1688193862437,0.16469292,30430.0,30429.0,1.07829705]
[1688193863139,0.18441592,30430.0,30429.0,1.07829705]
[1688193863329,0.02021599,30430.0,30429.0,1.07829705]
[1688193863731,0.00049299,30430.0,30429.0,1.07829705]
[1688193864233,0.02021799,30430.0,30429.0,1.07829705]
[1688193864437,0.18441792,30430.0,30429.0,1.07829705]
[1688193871134,0.18441792,30430.0,30429.0,0.71749705]
[1688193874038,0.18441792,30430.0,30429.0,0.69915269]
[1688193874237,0.20326737,30430.0,30429.0,0.69915269]
[1688193874541,0.18441792,30430.0,30429.0,0.69915269]
[1688193875448,0.18441792,30430.0,30429.0,0.71749705]
[1688193878247,0.02021799,30430.0,30429.0,0.71749705]
[1688193882943,0.00049299,30430.0,30429.0,0.71749705]
[1688193883143,0.02021399,30430.0,30429.0,0.71749705]
[1688193886456,0.02021399,30430.0,30429.0,0.41149705]
[1688193889854,0.02021399,30430.0,30429.0,0.77229705]
[1688193892645,0.00049299,30430.0,30429.0,0.77229705]
[1688193894451,0.00049299,30430.0,30429.0,0.41149705]
[1688193894649,0.00049299,30430.0,30429.0,0.77229705]
[1688193894856,0.00049299,30430.0,30429.0,0.41149705]
[1688193895040,0.00049299,30430.0,30429.0,0.77229705]
[1688193905663,0.00049299,30430.0,30429.0,0.41149705]
[1688193905853,0.00049299,30430.0,30429.0,0.77229705]
[1688193914864,0.00049299,30430.0,30429.0,0.41149705]
[1688193915060,0.00049299,30430.0,30429.0,0.77229705]
[1688193921168,0.00049299,30430.0,30429.0,0.41149705]
[1688193921375,0.00049299,30430.0,30429.0,0.87088685]
[1688193932985,0.00088755,30430.0,30429.0,0.87088685]
[1688193936189,0.02060855,30430.0,30429.0,0.87088685]
[1688193944500,0.02060855,30430.0,30429.0,0.8343128]
[1688193944698,0.18479732,30430.0,30429.0,0.42655558]
[1688193944904,0.53999732,30430.0,30429.0,0.44627858]
[1688193945097,0.55884677,30430.0,30429.0,0.44627858]
[1688193945401,0.55884677,30430.0,30429.0,0.3608]
[1688193945791,0.394658,30430.0,30429.0,0.3608]
[1688193945997,0.55884077,30430.0,30429.0,0.3608]
[1688193947904,0.394658,30430.0,30429.0,0.380522]
[1688193948199,0.55881161,30430.0,30429.0,0.380522]
[1688193954015,0.394658,30430.0,30429.0,0.380522]
[1688193958201,0.55881161,30430.0,30429.0,0.380522]
[1688193963917,0.55881161,30430.0,30429.0,0.019722]
[1688193964212,0.394658,30430.0,30427.0,0.419971]
[1688193964421,0.352,30428.0,30427.0,0.419971]
[1688193964615,0.371723,30428.0,30427.0,0.43831536]
[1688193965019,0.37211343,30428.0,30427.0,0.43831536]
[1688193966321,0.37211343,30428.0,30427.0,0.419971]
[1688193968517,0.37211343,30428.0,30427.0,0.059171]
[1688193968718,0.37211343,30428.0,30427.0,0.419971]
[1688193969624,0.39096288,30428.0,30427.0,0.419971]
[1688193971124,0.37211343,30428.0,30427.0,0.419971]
[1688193978732,0.37211343,30428.0,30427.0,0.43831536]
[1688193981334,0.37211343,30428.0,30427.0,0.419971]
[1688193982131,0.37211343,30428.0,30427.0,0.48572658]
[1688193983530,0.37211343,30428.0,30427.0,0.419971]
[1688193987441,0.39096288,30428.0,30427.0,0.419971]
[1688193988155,0.39096288,30428.0,30427.0,0.48572658]
[1688193989857,0.39096288,30428.0,30427.0,0.12492658]
[1688193990459,0.39096288,30428.0,30427.0,0.48572658]
[1688193990649,0.39096288,30428.0,30427.0,0.78852658]
[1688193990850,0.39096288,30428.0,30427.0,0.722771]
[1688193992565,0.39096288,30428.0,30427.0,0.74100069]
[1688193992749,0.39096288,30428.0,30427.0,0.361971]
[1688193992951,0.39096288,30428.0,30427.0,0.722771]
[1688193994961,0.39096288,30428.0,30427.0,0.361971]
[1688193995260,0.39096288,30428.0,30427.0,0.722771]
[1688193995757,0.37211343,30428.0,30427.0,0.74100069]
[1688193995965,0.00039043,30428.0,30427.0,1.09610069]
[1688193996150,0.00039043,30428.0,30427.0,1.11444505]
[1688193996962,0.5198466,30430.0,30427.0,1.11444505]
[1688193997268,0.5198466,30430.0,30429.0,0.06576021]
[1688193997565,0.5198466,30430.0,30429.0,0.08548221]
[1688193997966,0.52019619,30430.0,30429.0,0.12205626]
[1688193998167,0.35604258,30430.0,30429.0,0.12205626]
[1688193998368,0.35604258,30430.0,30429.0,0.41709605]
[1688193998369,0.52019619,30430.0,30429.0,0.41709605]
[1688193999267,0.52019619,30430.0,30429.0,0.48285626]
[1688193999465,0.35604258,30430.0,30429.0,0.48285626]
[1688194002174,0.00084258,30430.0,30429.0,0.48285626]
[1688194004466,0.02056358,30430.0,30429.0,0.48285626]
[1688194004873,0.02056358,30430.0,30429.0,0.83775626]
[1688194008078,0.02056358,30430.0,30429.0,0.47695626]
[1688194008375,0.02056358,30430.0,30429.0,0.83775626]
[1688194008976,0.02056358,30430.0,30429.0,0.47695626]
[1688194009174,0.02056358,30430.0,30429.0,0.83775626]
[1688194010876,0.00084258,30430.0,30429.0,0.83775626]
[1688194011281,0.6384,30435.0,30431.0,0.3519]
[1688194011282,0.019719,30434.0,30431.0,0.3519]
[1688194011479,0.019719,30434.0,30433.0,0.716]
[1688194011777,0.019719,30434.0,30433.0,0.735719]
[1688194011977,0.0200699,30434.0,30433.0,0.735719]
[1688194012284,0.0003509,30434.0,30433.0,1.09129305]
[1688194012480,0.18436349,30437.0,30433.0,1.12700415]
[1688194012673,0.02020988,30437.0,30436.0,0.716]
[1688194012873,0.02020988,30437.0,30436.0,0.735717]
[1688194013291,0.02020988,30437.0,30436.0,0.77229105]
[1688194017583,0.03243889,30437.0,30436.0,0.77229105]
[1688194018878,0.0327698,30437.0,30436.0,0.77229105]
[1688194021276,0.0327698,30437.0,30436.0,0.7989134]
[1688194021673,0.05161925,30437.0,30436.0,0.76233935]
[1688194021872,0.05161925,30437.0,30436.0,0.78056904]
[1688194022076,0.40491925,30437.0,30436.0,0.76233935]
[1688194022586,0.40491925,30437.0,30436.0,0.78056904]
[1688194022886,0.40458834,30437.0,30436.0,0.76233935]
[1688194023082,0.38573889,30437.0,30436.0,0.76233935]
[1688194023683,0.38573889,30437.0,30436.0,0.78056904]
[1688194024076,0.38573889,30437.0,30436.0,0.7989134]
[1688194025583,0.38573889,30437.0,30436.0,0.4381134]
[1688194025782,0.38573889,30437.0,30436.0,0.7989134]
[1688194026090,0.38573889,30437.0,30436.0,1.1299134]
[1688194027586,0.38573889,30437.0,30436.0,0.7691134]
[1688194027787,0.38573889,30437.0,30436.0,1.1299134]
[1688194029290,0.38573889,30437.0,30436.0,1.11168371]
[1688194030589,0.38573889,30437.0,30436.0,1.1299134]
[1688194031088,0.38573889,30437.0,30436.0,1.11168371]
[1688194031295,0.38573889,30437.0,30436.0,1.1299134]
[1688194031484,0.38573889,30437.0,30436.0,1.11168371]
[1688194032295,0.03243889,30437.0,30436.0,1.11168371]
[1688194032596,0.03243889,30437.0,30436.0,0.7691134]
[1688194032988,0.03243889,30437.0,30436.0,1.1299134]
[1688194033591,0.03243889,30437.0,30436.0,1.11168371]
[1688194034498,0.03243889,30437.0,30436.0,1.1299134]
[1688194034796,0.03243889,30437.0,30436.0,1.11168371]
[1688194034993,0.03243889,30437.0,30436.0,1.1299134]
[1688194035191,0.03243889,30437.0,30436.0,1.11168371]
[1688194035792,0.03243889,30437.0,30436.0,1.1299134]
[1688194035992,0.03243889,30437.0,30436.0,1.11168371]
[1688194036789,0.03243889,30437.0,30436.0,1.1299134]
[1688194038494,0.03243889,30437.0,30436.0,1.11168371]
[1688194038694,0.03243889,30437.0,30436.0,1.1299134]
[1688194038891,0.03243889,30437.0,30436.0,1.11168371]
[1688194039399,0.03243889,30437.0,30436.0,1.1299134]
[1688194039987,0.03243889,30437.0,30436.0,1.11168371]
[1688194040390,0.03243889,30437.0,30436.0,1.1299134]
[1688194042201,0.03243889,30437.0,30436.0,1.11168371]
[1688194042999,0.03243889,30437.0,30436.0,1.1299134]
[1688194043195,0.03243889,30437.0,30436.0,1.11168371]
[1688194044396,0.03243889,30437.0,30436.0,1.1299134]
[1688194044703,0.03243889,30437.0,30436.0,1.11168371]
[1688194047093,0.03243889,30437.0,30436.0,1.1299134]
[1688194047296,0.03243889,30437.0,30436.0,1.11168371]
[1688194051100,0.03243889,30437.0,30436.0,1.1299134]
[1688194051295,0.03243889,30437.0,30436.0,1.11168371]
[1688194052107,0.03243889,30437.0,30436.0,0.75088371]
[1688194052402,0.03243889,30437.0,30436.0,1.11168371]
[1688194053006,0.03243889,30437.0,30436.0,0.75088371]
[1688194053301,0.03243889,30437.0,30436.0,1.11168371]
[1688194055208,0.03243889,30437.0,30436.0,0.75088371]
[1688194055404,0.03243889,30437.0,30436.0,1.11168371]
[1688194056105,0.1965925,30437.0,30436.0,1.11168371]
[1688194056308,0.1965925,30437.0,30436.0,1.1299134]
[1688194056893,0.1965925,30437.0,30436.0,0.7691134]
[1688194057301,0.1965925,30437.0,30436.0,1.11168371]
[1688194057708,0.1965925,30437.0,30436.0,1.1299134]
[1688194058411,0.03243889,30437.0,30436.0,1.1299134]
[1688194060013,0.03243889,30437.0,30436.0,1.11168371]
[1688194060602,0.03243889,30437.0,30436.0,1.1299134]
[1688194061118,0.03243889,30437.0,30436.0,1.11168371]
[1688194063615,0.03243889,30437.0,30436.0,0.75088371]
[1688194063910,0.03243889,30437.0,30436.0,1.11168371]
[1688194064602,0.03243889,30437.0,30436.0,1.1299134]
[1688194065116,0.03243889,30437.0,30436.0,1.11168371]
[1688194065816,0.03243889,30437.0,30436.0,1.17736886]
[1688194065817,0.19663548,30437.0,30436.0,1.17736886]
[1688194066604,0.19663548,30437.0,30436.0,1.19559855]
[1688194067209,0.16419659,30438.0,30436.0,1.22855371]
[1688194067517,0.16419659,30439.0,30438.0,0.019715]
[1688194067811,0.16419659,30439.0,30438.0,0.373415]
[1688194068012,0.16419659,30439.0,30438.0,0.46438456]
[1688194069307,0.16419659,30439.0,30438.0,0.40998905]
[1688194069513,0.22334659,30440.0,30438.0,0.40998905]
[1688194069713,0.22334659,30440.0,30439.0,0.75247405]
[1688194070016,0.22334659,30440.0,30439.0,0.77218905]
[1688194070214,0.22334659,30440.0,30439.0,1.09128905]
[1688194071415,0.22334659,30440.0,30439.0,0.73048905]
[1688194071611,0.22334659,30440.0,30439.0,1.09128905]
[1688194072914,0.22334659,30440.0,30439.0,1.054715]
[1688194073418,0.07799945,30440.0,30439.0,1.054715]
[1688194073710,0.07799945,30440.0,30439.0,1.07294469]
[1688194074218,0.05915,30440.0,30439.0,1.07294469]
[1688194074819,0.07092107,30440.0,30439.0,1.07294469]
[1688194078416,0.07092107,30440.0,30439.0,1.054715]
[1688194078713,0.07092107,30440.0,30439.0,1.07294469]
[1688194080018,0.07092107,30440.0,30439.0,1.054715]
[1688194080206,0.07092107,30440.0,30439.0,1.07294469]
[1688194080207,0.08977052,30440.0,30439.0,1.07294469]
[1688194080412,0.07092107,30440.0,30439.0,1.07294469]
[1688194080914,0.23501479,30440.0,30439.0,0.71214469]
[1688194081120,0.23501479,30440.0,30439.0,1.07294469]
[1688194081525,0.25386424,30440.0,30439.0,1.07294469]
[1688194083623,0.25386424,30440.0,30439.0,0.71214469]